[Event "Titled Tuesday Blitz November 14 Late 2023"]
[White "Quirke, Jeffrey"]
[Black "Desideri, Ricardo Maruchi"]
[WhiteFideId "2013029"]
[BlackFideId "2110440"]
[WhiteElo "2233"]
[BlackElo "1976"]
[Result "0-1"]
[Round "9"]
[TimeControl "180+1"]
[Date "2023.11.14"]
[WhiteClock "0:00:00"]
[BlackClock "0:00:23"]
[Board "105"]

1. e4 {[%clk 0:02:56]}  c5 {[%clk 0:02:59]} 2. c3 {[%clk 0:02:56]}  g6 {[%clk 0:02:57]} 3. d4 {[%clk 0:02:55]}  cxd4 {[%clk 0:02:57]} 4. cxd4 {[%clk 0:02:55]}  d5 {[%clk 0:02:58]} 5. e5 {[%clk 0:02:54]}  Nh6 {[%clk 0:02:58]} 6. h3 {[%clk 0:02:50]}  Bg7 {[%clk 0:02:57]} 7. Nf3 {[%clk 0:02:50]}  O-O {[%clk 0:02:57]} 8. Nc3 {[%clk 0:02:48]}  f6 {[%clk 0:02:57]} 9. Bf4 {[%clk 0:02:40]}  Nc6 {[%clk 0:02:53]} 10. Qd2 {[%clk 0:02:29]}  Nf7 {[%clk 0:02:52]} 11. exf6 {[%clk 0:02:27]}  exf6 {[%clk 0:02:51]} 12. Be2 {[%clk 0:02:21]}  g5 {[%clk 0:02:49]} 13. Be3 {[%clk 0:02:17]}  h6 {[%clk 0:02:39]} 14. g4 {[%clk 0:02:04]}  Nd6 {[%clk 0:02:30]} 15. O-O-O {[%clk 0:02:02]}  Ne4 {[%clk 0:02:30]} 16. Nxe4 {[%clk 0:02:00]}  dxe4 {[%clk 0:02:30]} 17. Ne1 {[%clk 0:01:57]}  f5 {[%clk 0:02:29]} 18. gxf5 {[%clk 0:01:57]}  Bxf5 {[%clk 0:02:28]} 19. Nc2 {[%clk 0:01:50]}  Rc8 {[%clk 0:02:26]} 20. Kb1 {[%clk 0:01:50]}  a5 {[%clk 0:01:57]} 21. Rdg1 {[%clk 0:01:48]}  Qc7 {[%clk 0:01:01]} 22. h4 {[%clk 0:01:47]}  Rfd8 {[%clk 0:01:00]} 23. hxg5 {[%clk 0:01:45]}  Nxd4 {[%clk 0:01:01]} 24. Nxd4 {[%clk 0:01:44]}  Bxd4 {[%clk 0:00:59]} 25. gxh6+ {[%clk 0:01:38]}  Kh7 {[%clk 0:00:59]} 26. Rg7+ {[%clk 0:01:06]}  Bxg7 {[%clk 0:00:57]} 27. hxg7+ {[%clk 0:01:07]}  Kxg7 {[%clk 0:00:56]} 28. Bd4+ {[%clk 0:01:07]}  Kg6 {[%clk 0:00:41]} 29. Qh6+ {[%clk 0:00:34]}  Kf7 {[%clk 0:00:38]} 30. Qg7+ {[%clk 0:00:31]}  Ke6 {[%clk 0:00:38]} 31. Qf6+ {[%clk 0:00:28]}  Kd5 {[%clk 0:00:36]} 32. Bc3 {[%clk 0:00:17]}  Qf4 {[%clk 0:00:27]} 33. Rd1+ {[%clk 0:00:13]}  Kc5 {[%clk 0:00:27]} 34. Qe7+ {[%clk 0:00:11]}  Kb6 {[%clk 0:00:25]} 35. Bxa5+ {[%clk 0:00:09]}  Kxa5 {[%clk 0:00:24]} 36. Qa3+ {[%clk 0:00:08]}  Kb6 {[%clk 0:00:23]} 37. Qb4+ {[%clk 0:00:07]}  Ka7 {[%clk 0:00:23]} 38. Qa5+ {[%clk 0:00:00]}  Kb8 {[%clk 0:00:23]} 0-1


[Site "https://www.chess.com"]

[Event "Titled Tuesday Blitz November 14 Late 2023"]
[White "Liu, Xiangyi"]
[Black "PapaieDudu"]
[WhiteFideId "8605718"]
[WhiteElo "2746"]
[BlackElo "2372"]
[Result "1-0"]
[Round "9"]
[TimeControl "180+1"]
[Date "2023.11.14"]
[WhiteClock "0:00:05"]
[BlackClock "0:00:00"]
[Board "106"]

1. Nf3 {[%clk 0:03:00]}  d5 {[%clk 0:02:56]} 2. g3 {[%clk 0:03:00]}  e6 {[%clk 0:02:57]} 3. Bg2 {[%clk 0:03:01]}  Nf6 {[%clk 0:02:57]} 4. O-O {[%clk 0:03:01]}  Be7 {[%clk 0:02:58]} 5. d3 {[%clk 0:03:02]}  O-O {[%clk 0:02:56]} 6. Nbd2 {[%clk 0:03:03]}  c5 {[%clk 0:02:55]} 7. e4 {[%clk 0:03:04]}  d4 {[%clk 0:02:56]} 8. e5 {[%clk 0:03:00]}  Nd5 {[%clk 0:02:56]} 9. h4 {[%clk 0:03:00]}  Re8 {[%clk 0:02:56]} 10. h5 {[%clk 0:03:00]}  h6 {[%clk 0:02:56]} 11. Re1 {[%clk 0:03:01]}  Nc6 {[%clk 0:02:55]} 12. Nf1 {[%clk 0:03:01]}  b5 {[%clk 0:02:54]} 13. N1h2 {[%clk 0:03:01]}  Bf8 {[%clk 0:02:50]} 14. Bd2 {[%clk 0:02:50]}  Bb7 {[%clk 0:02:49]} 15. Qe2 {[%clk 0:02:44]}  Nce7 {[%clk 0:02:48]} 16. c3 {[%clk 0:02:40]}  dxc3 {[%clk 0:02:44]} 17. bxc3 {[%clk 0:02:41]}  Qd7 {[%clk 0:02:40]} 18. c4 {[%clk 0:02:34]}  Nb6 {[%clk 0:02:36]} 19. Rad1 {[%clk 0:02:33]}  Rad8 {[%clk 0:02:34]} 20. Bc3 {[%clk 0:02:08]}  Nf5 {[%clk 0:02:33]} 21. Ng4 {[%clk 0:01:58]}  Nd4 {[%clk 0:02:29]} 22. Bxd4 {[%clk 0:01:48]}  cxd4 {[%clk 0:02:30]} 23. cxb5 {[%clk 0:01:48]}  Qxb5 {[%clk 0:02:23]} 24. Nd2 {[%clk 0:01:48]}  Bxg2 {[%clk 0:01:32]} 25. Kxg2 {[%clk 0:01:49]}  Na4 {[%clk 0:01:22]} 26. Ne4 {[%clk 0:01:46]}  Nc3 {[%clk 0:01:10]} 27. Qf3 {[%clk 0:01:14]}  Kh8 {[%clk 0:00:44]} 28. Qxf7 {[%clk 0:00:56]}  Nxd1 {[%clk 0:00:35]} 29. Rxd1 {[%clk 0:00:40]}  Qd7 {[%clk 0:00:26]} 30. Qg6 {[%clk 0:00:38]}  Re7 {[%clk 0:00:25]} 31. Nd6 {[%clk 0:00:31]}  Qc6+ {[%clk 0:00:24]} 32. Kh2 {[%clk 0:00:31]}  Qf3 {[%clk 0:00:23]} 33. Rd2 {[%clk 0:00:24]}  Rc7 {[%clk 0:00:20]} 34. Ne8 {[%clk 0:00:18]}  Rc1 {[%clk 0:00:15]} 35. Kh3 {[%clk 0:00:17]}  Rh1+ {[%clk 0:00:16]} 36. Nh2 {[%clk 0:00:18]}  Rd7 {[%clk 0:00:06]} 37. Rc2 {[%clk 0:00:16]}  Rg1 {[%clk 0:00:04]} 38. Kh4 {[%clk 0:00:07]}  Rh1 {[%clk 0:00:03]} 39. Kh3 {[%clk 0:00:06]}  Rf7 {[%clk 0:00:00]} 40. Nd6 {[%clk 0:00:05]} 1-0


[Site "https://www.chess.com"]

[Event "Titled Tuesday Blitz November 14 Late 2023"]
[White "Tabatabaei, M. Amin"]
[Black "Erigaisi Arjun"]
[WhiteFideId "12521213"]
[BlackFideId "35009192"]
[WhiteElo "3087"]
[BlackElo "3072"]
[Result "1-0"]
[Round "10"]
[TimeControl "180+1"]
[Date "2023.11.14"]
[WhiteClock "0:01:18"]
[BlackClock "0:00:09"]
[Board "1"]

1. e4 {[%clk 0:03:00]}  c6 {[%clk 0:02:59]} 2. d4 {[%clk 0:02:58]}  d5 {[%clk 0:03:00]} 3. exd5 {[%clk 0:02:59]}  cxd5 {[%clk 0:03:01]} 4. Bd3 {[%clk 0:02:59]}  Nc6 {[%clk 0:03:01]} 5. c3 {[%clk 0:03:00]}  Nf6 {[%clk 0:02:59]} 6. Bf4 {[%clk 0:03:00]}  Bg4 {[%clk 0:02:58]} 7. Qb3 {[%clk 0:03:00]}  Qc8 {[%clk 0:02:54]} 8. Nd2 {[%clk 0:02:59]}  e6 {[%clk 0:02:51]} 9. Ngf3 {[%clk 0:03:00]}  Nh5 {[%clk 0:02:46]} 10. Bg3 {[%clk 0:02:50]}  Nxg3 {[%clk 0:02:41]} 11. hxg3 {[%clk 0:02:51]}  Bxf3 {[%clk 0:02:41]} 12. gxf3 {[%clk 0:02:48]}  Bd6 {[%clk 0:02:38]} 13. f4 {[%clk 0:02:48]}  g6 {[%clk 0:02:32]} 14. Nf3 {[%clk 0:02:47]}  Qc7 {[%clk 0:02:32]} 15. a4 {[%clk 0:02:44]}  O-O-O {[%clk 0:02:31]} 16. Kf1 {[%clk 0:02:32]}  Kb8 {[%clk 0:02:28]} 17. Kg2 {[%clk 0:02:30]}  h6 {[%clk 0:02:27]} 18. Qc2 {[%clk 0:02:28]}  Rdg8 {[%clk 0:02:24]} 19. b4 {[%clk 0:02:25]}  Ne7 {[%clk 0:02:22]} 20. Ne5 {[%clk 0:02:17]}  Rg7 {[%clk 0:02:03]} 21. a5 {[%clk 0:02:17]}  h5 {[%clk 0:01:43]} 22. b5 {[%clk 0:02:16]}  Bxe5 {[%clk 0:01:37]} 23. b6 {[%clk 0:02:08]}  Qd7 {[%clk 0:01:30]} 24. bxa7+ {[%clk 0:02:05]}  Kxa7 {[%clk 0:01:31]} 25. fxe5 {[%clk 0:02:05]}  Ra8 {[%clk 0:01:15]} 26. Rhb1 {[%clk 0:02:03]}  Rgg8 {[%clk 0:01:15]} 27. Rb6 {[%clk 0:01:56]}  Nc8 {[%clk 0:01:10]} 28. Qb3 {[%clk 0:01:51]}  Kb8 {[%clk 0:01:06]} 29. Rb4 {[%clk 0:01:37]}  Ra7 {[%clk 0:01:05]} 30. Rb1 {[%clk 0:01:30]}  Qc7 {[%clk 0:00:09]} 31. Ba6 {[%clk 0:01:18]} 1-0


[Site "https://www.chess.com"]

[Event "Titled Tuesday Blitz November 14 Late 2023"]
[White "Naroditsky, Daniel"]
[Black "Hakobyan, Aram"]
[WhiteFideId "2026961"]
[BlackFideId "13306677"]
[WhiteElo "3101"]
[BlackElo "3019"]
[Result "1-0"]
[Round "10"]
[TimeControl "180+1"]
[Date "2023.11.14"]
[WhiteClock "0:00:06"]
[BlackClock "0:00:04"]
[Board "7"]

1. e4 {[%clk 0:03:00]}  c5 {[%clk 0:02:58]} 2. c3 {[%clk 0:02:56]}  e5 {[%clk 0:02:57]} 3. Nf3 {[%clk 0:02:55]}  Nc6 {[%clk 0:02:57]} 4. Bc4 {[%clk 0:02:54]}  Nf6 {[%clk 0:02:57]} 5. d3 {[%clk 0:02:54]}  h6 {[%clk 0:02:56]} 6. Nbd2 {[%clk 0:02:52]}  Be7 {[%clk 0:02:53]} 7. Nf1 {[%clk 0:02:52]}  d5 {[%clk 0:02:50]} 8. exd5 {[%clk 0:02:53]}  Nxd5 {[%clk 0:02:51]} 9. Ng3 {[%clk 0:02:53]}  Be6 {[%clk 0:02:50]} 10. O-O {[%clk 0:02:53]}  O-O {[%clk 0:02:51]} 11. Re1 {[%clk 0:02:54]}  Qc7 {[%clk 0:02:45]} 12. Qe2 {[%clk 0:02:46]}  Rfe8 {[%clk 0:02:26]} 13. Nxe5 {[%clk 0:02:12]}  Nxe5 {[%clk 0:02:17]} 14. Qxe5 {[%clk 0:02:13]}  Bd6 {[%clk 0:02:18]} 15. Qe2 {[%clk 0:02:02]}  Qd7 {[%clk 0:01:58]} 16. Bd2 {[%clk 0:01:46]}  b5 {[%clk 0:01:51]} 17. Bb3 {[%clk 0:01:45]}  a5 {[%clk 0:01:45]} 18. Qf3 {[%clk 0:01:35]}  Bf8 {[%clk 0:01:41]} 19. Re5 {[%clk 0:01:23]}  Rad8 {[%clk 0:01:34]} 20. Rae1 {[%clk 0:01:10]}  a4 {[%clk 0:00:46]} 21. Bd1 {[%clk 0:01:02]}  Nf6 {[%clk 0:00:43]} 22. h3 {[%clk 0:00:41]}  Qxd3 {[%clk 0:00:38]} 23. Qxd3 {[%clk 0:00:42]}  Rxd3 {[%clk 0:00:38]} 24. Bc1 {[%clk 0:00:38]}  Red8 {[%clk 0:00:37]} 25. Be2 {[%clk 0:00:36]}  R3d5 {[%clk 0:00:24]} 26. Rxd5 {[%clk 0:00:35]}  Nxd5 {[%clk 0:00:25]} 27. Bxb5 {[%clk 0:00:34]}  a3 {[%clk 0:00:26]} 28. c4 {[%clk 0:00:27]}  axb2 {[%clk 0:00:25]} 29. Bxb2 {[%clk 0:00:27]}  Nf4 {[%clk 0:00:25]} 30. Bc3 {[%clk 0:00:22]}  Rd3 {[%clk 0:00:23]} 31. Be5 {[%clk 0:00:22]}  Ng6 {[%clk 0:00:21]} 32. Bc7 {[%clk 0:00:13]}  Ra3 {[%clk 0:00:21]} 33. Re2 {[%clk 0:00:13]}  Be7 {[%clk 0:00:14]} 34. Ne4 {[%clk 0:00:14]}  Bf5 {[%clk 0:00:11]} 35. f3 {[%clk 0:00:05]}  Bxe4 {[%clk 0:00:08]} 36. fxe4 {[%clk 0:00:03]}  Bg5 {[%clk 0:00:09]} 37. g3 {[%clk 0:00:03]}  Be3+ {[%clk 0:00:09]} 38. Kg2 {[%clk 0:00:03]}  Bd4 {[%clk 0:00:09]} 39. e5 {[%clk 0:00:03]}  Nf8 {[%clk 0:00:10]} 40. Bd6 {[%clk 0:00:03]}  Ne6 {[%clk 0:00:11]} 41. Bc6 {[%clk 0:00:03]}  Bc3 {[%clk 0:00:11]} 42. Bd5 {[%clk 0:00:03]}  Nd4 {[%clk 0:00:12]} 43. Rf2 {[%clk 0:00:04]}  Ne6 {[%clk 0:00:12]} 44. Bxe6 {[%clk 0:00:03]}  fxe6 {[%clk 0:00:13]} 45. Bxc5 {[%clk 0:00:04]}  Ra5 {[%clk 0:00:13]} 46. Bd6 {[%clk 0:00:04]}  Bxe5 {[%clk 0:00:10]} 47. Bxe5 {[%clk 0:00:04]}  Rxe5 {[%clk 0:00:11]} 48. Rc2 {[%clk 0:00:05]}  Rc5 {[%clk 0:00:10]} 49. Kf3 {[%clk 0:00:06]}  Kf7 {[%clk 0:00:11]} 50. Ke4 {[%clk 0:00:07]}  e5 {[%clk 0:00:11]} 51. a4 {[%clk 0:00:05]}  Ke6 {[%clk 0:00:12]} 52. Kd3 {[%clk 0:00:05]}  Ra5 {[%clk 0:00:12]} 53. Ra2 {[%clk 0:00:05]}  Kd6 {[%clk 0:00:12]} 54. Kc3 {[%clk 0:00:04]}  Kc5 {[%clk 0:00:09]} 55. Re2 {[%clk 0:00:04]}  Rxa4 {[%clk 0:00:10]} 56. Rxe5+ {[%clk 0:00:05]}  Kd6 {[%clk 0:00:10]} 57. Re3 {[%clk 0:00:03]}  Kc5 {[%clk 0:00:11]} 58. Re5+ {[%clk 0:00:02]}  Kd6 {[%clk 0:00:11]} 59. Rd5+ {[%clk 0:00:03]}  Kc6 {[%clk 0:00:10]} 60. Kb3 {[%clk 0:00:03]}  Ra1 {[%clk 0:00:10]} 61. Rd3 {[%clk 0:00:02]}  g5 {[%clk 0:00:09]} 62. Kb4 {[%clk 0:00:02]}  Rb1+ {[%clk 0:00:07]} 63. Rb3 {[%clk 0:00:03]}  Rh1 {[%clk 0:00:07]} 64. g4 {[%clk 0:00:03]}  Rh2 {[%clk 0:00:06]} 65. Rf3 {[%clk 0:00:04]}  Kd7 {[%clk 0:00:04]} 66. Kc5 {[%clk 0:00:04]}  Rh1 {[%clk 0:00:05]} 67. Kd5 {[%clk 0:00:04]}  Rd1+ {[%clk 0:00:05]} 68. Ke5 {[%clk 0:00:04]}  Ke7 {[%clk 0:00:05]} 69. c5 {[%clk 0:00:05]}  Kd7 {[%clk 0:00:03]} 70. Rf6 {[%clk 0:00:04]}  Re1+ {[%clk 0:00:01]} 71. Kd5 {[%clk 0:00:04]}  Ke7 {[%clk 0:00:01]} 72. Rxh6 {[%clk 0:00:04]}  Rd1+ {[%clk 0:00:02]} 73. Kc6 {[%clk 0:00:05]}  Rd3 {[%clk 0:00:03]} 74. Kc7 {[%clk 0:00:05]}  Kf7 {[%clk 0:00:03]} 75. c6 {[%clk 0:00:05]}  Rc3 {[%clk 0:00:03]} 76. Kd7 {[%clk 0:00:05]}  Rd3+ {[%clk 0:00:04]} 77. Rd6 {[%clk 0:00:06]}  Re3 {[%clk 0:00:04]} 78. c7 {[%clk 0:00:06]} 1-0


[Site "https://www.chess.com"]

[Event "Titled Tuesday Blitz November 14 Late 2023"]
[White "Nihal Sarin"]
[Black "Beerdsen, Thomas"]
[WhiteFideId "25092340"]
[BlackFideId "1030108"]
[WhiteElo "3094"]
[BlackElo "2873"]
[Result "1-0"]
[Round "10"]
[TimeControl "180+1"]
[Date "2023.11.14"]
[WhiteClock "0:00:09"]
[BlackClock "0:00:18"]
[Board "8"]

1. a3 {[%clk 0:03:00]}  e5 {[%clk 0:03:00]} 2. c4 {[%clk 0:03:01]}  Nf6 {[%clk 0:03:00]} 3. d3 {[%clk 0:03:02]}  d5 {[%clk 0:02:59]} 4. cxd5 {[%clk 0:03:02]}  Nxd5 {[%clk 0:03:00]} 5. Nf3 {[%clk 0:03:03]}  Nc6 {[%clk 0:03:00]} 6. e3 {[%clk 0:03:03]}  g5 {[%clk 0:02:59]} 7. b4 {[%clk 0:03:03]}  g4 {[%clk 0:02:59]} 8. Nfd2 {[%clk 0:03:03]}  Be6 {[%clk 0:02:57]} 9. Bb2 {[%clk 0:03:04]}  Qg5 {[%clk 0:02:56]} 10. Ne4 {[%clk 0:03:01]}  Qg6 {[%clk 0:02:54]} 11. b5 {[%clk 0:03:01]}  Nce7 {[%clk 0:02:53]} 12. Bxe5 {[%clk 0:03:01]}  Bg7 {[%clk 0:02:53]} 13. Bxg7 {[%clk 0:03:01]}  Qxg7 {[%clk 0:02:54]} 14. Nbd2 {[%clk 0:03:02]}  Nf5 {[%clk 0:02:54]} 15. Qc1 {[%clk 0:02:47]}  h5 {[%clk 0:02:49]} 16. Rb1 {[%clk 0:02:33]}  h4 {[%clk 0:02:47]} 17. Qb2 {[%clk 0:02:33]}  Qh6 {[%clk 0:02:46]} 18. Be2 {[%clk 0:02:26]}  O-O-O {[%clk 0:02:43]} 19. Nc4 {[%clk 0:02:12]}  Kb8 {[%clk 0:02:10]} 20. a4 {[%clk 0:02:04]}  Bc8 {[%clk 0:01:53]} 21. a5 {[%clk 0:02:03]}  Rhe8 {[%clk 0:01:52]} 22. b6 {[%clk 0:02:01]}  cxb6 {[%clk 0:01:50]} 23. axb6 {[%clk 0:02:02]}  a6 {[%clk 0:01:50]} 24. Rc1 {[%clk 0:01:03]}  Re6 {[%clk 0:01:46]} 25. Bxg4 {[%clk 0:01:01]}  Nfxe3 {[%clk 0:01:41]} 26. fxe3 {[%clk 0:00:57]}  Nxe3 {[%clk 0:01:32]} 27. Bxe6 {[%clk 0:00:51]}  Nxg2+ {[%clk 0:01:33]} 28. Kd1 {[%clk 0:00:36]}  Bxe6 {[%clk 0:01:25]} 29. Kc2 {[%clk 0:00:36]}  Bxc4 {[%clk 0:01:25]} 30. dxc4 {[%clk 0:00:37]}  Qe3 {[%clk 0:01:18]} 31. Qe5+ {[%clk 0:00:09]}  Ka8 {[%clk 0:01:18]} 32. Rhd1 {[%clk 0:00:10]}  Rc8 {[%clk 0:01:12]} 33. Qd4 {[%clk 0:00:06]}  Qa3 {[%clk 0:01:06]} 34. Kb1 {[%clk 0:00:03]}  Nf4 {[%clk 0:01:02]} 35. Qb2 {[%clk 0:00:03]}  Qe3 {[%clk 0:00:59]} 36. Nd6 {[%clk 0:00:04]}  Rg8 {[%clk 0:00:53]} 37. c5 {[%clk 0:00:04]}  Ne2 {[%clk 0:00:45]} 38. c6 {[%clk 0:00:04]}  Nxc1 {[%clk 0:00:44]} 39. c7 {[%clk 0:00:03]}  Nd3 {[%clk 0:00:41]} 40. Qc3 {[%clk 0:00:03]}  Qxb6+ {[%clk 0:00:41]} 41. Ka1 {[%clk 0:00:03]}  Qxd6 {[%clk 0:00:27]} 42. c8=Q+ {[%clk 0:00:03]}  Rxc8 {[%clk 0:00:27]} 43. Qxc8+ {[%clk 0:00:04]}  Ka7 {[%clk 0:00:28]} 44. Qc3 {[%clk 0:00:05]}  Qxh2 {[%clk 0:00:22]} 45. Rxd3 {[%clk 0:00:06]}  Qg1+ {[%clk 0:00:20]} 46. Kb2 {[%clk 0:00:06]}  Qg2+ {[%clk 0:00:20]} 47. Rd2 {[%clk 0:00:06]}  Qg5 {[%clk 0:00:19]} 48. Qd4+ {[%clk 0:00:06]}  Kb8 {[%clk 0:00:18]} 49. Qd8+ {[%clk 0:00:07]}  Qxd8 {[%clk 0:00:18]} 50. Rxd8+ {[%clk 0:00:07]}  Kc7 {[%clk 0:00:19]} 51. Rf8 {[%clk 0:00:08]}  Kd6 {[%clk 0:00:19]} 52. Rxf7 {[%clk 0:00:08]}  b5 {[%clk 0:00:18]} 53. Rh7 {[%clk 0:00:09]} 1-0


[Site "https://www.chess.com"]

[Event "Titled Tuesday Blitz November 14 Late 2023"]
[White "BardArtem"]
[Black "Eljanov, Pavel"]
[BlackFideId "14102951"]
[WhiteElo "2836"]
[BlackElo "2884"]
[Result "1-0"]
[Round "10"]
[TimeControl "180+1"]
[Date "2023.11.14"]
[WhiteClock "0:00:38"]
[BlackClock "0:00:24"]
[Board "10"]

1. e4 {[%clk 0:03:00]}  c6 {[%clk 0:02:59]} 2. d4 {[%clk 0:03:00]}  d5 {[%clk 0:03:00]} 3. exd5 {[%clk 0:03:01]}  cxd5 {[%clk 0:03:00]} 4. Bd3 {[%clk 0:03:01]}  Nf6 {[%clk 0:03:01]} 5. h3 {[%clk 0:03:01]}  Nc6 {[%clk 0:03:00]} 6. c3 {[%clk 0:03:01]}  e5 {[%clk 0:03:00]} 7. dxe5 {[%clk 0:03:01]}  Nxe5 {[%clk 0:03:00]} 8. Nf3 {[%clk 0:03:02]}  Nxd3+ {[%clk 0:02:56]} 9. Qxd3 {[%clk 0:03:03]}  Bd6 {[%clk 0:02:55]} 10. O-O {[%clk 0:03:03]}  O-O {[%clk 0:02:54]} 11. Bg5 {[%clk 0:03:03]}  h6 {[%clk 0:02:54]} 12. Bh4 {[%clk 0:03:01]}  g5 {[%clk 0:02:52]} 13. Bg3 {[%clk 0:03:01]}  Bxg3 {[%clk 0:02:52]} 14. fxg3 {[%clk 0:03:02]}  g4 {[%clk 0:02:50]} 15. hxg4 {[%clk 0:02:59]}  Nxg4 {[%clk 0:02:50]} 16. Nbd2 {[%clk 0:02:47]}  Qb6+ {[%clk 0:02:37]} 17. Qd4 {[%clk 0:02:46]}  Qxd4+ {[%clk 0:02:38]} 18. Nxd4 {[%clk 0:02:45]}  Re8 {[%clk 0:02:38]} 19. Rae1 {[%clk 0:02:39]}  Bd7 {[%clk 0:02:37]} 20. N2f3 {[%clk 0:02:38]}  a5 {[%clk 0:02:27]} 21. Rxe8+ {[%clk 0:02:23]}  Rxe8 {[%clk 0:02:26]} 22. Re1 {[%clk 0:02:23]}  Re4 {[%clk 0:02:10]} 23. Nb3 {[%clk 0:02:16]}  b6 {[%clk 0:02:05]} 24. Nbd2 {[%clk 0:02:16]}  Re6 {[%clk 0:02:00]} 25. b4 {[%clk 0:02:00]}  a4 {[%clk 0:01:54]} 26. c4 {[%clk 0:01:48]}  Rxe1+ {[%clk 0:01:38]} 27. Nxe1 {[%clk 0:01:48]}  Ne3 {[%clk 0:01:36]} 28. c5 {[%clk 0:01:41]}  bxc5 {[%clk 0:01:37]} 29. bxc5 {[%clk 0:01:42]}  Kf8 {[%clk 0:01:34]} 30. Nd3 {[%clk 0:01:41]}  Ke7 {[%clk 0:01:30]} 31. Kf2 {[%clk 0:01:41]}  Nc2 {[%clk 0:01:18]} 32. Nb1 {[%clk 0:01:25]}  d4 {[%clk 0:01:13]} 33. Ke2 {[%clk 0:01:09]}  Be6 {[%clk 0:01:09]} 34. Kd2 {[%clk 0:01:02]}  Ne3 {[%clk 0:01:09]} 35. Nb4 {[%clk 0:01:00]}  h5 {[%clk 0:00:54]} 36. Nc6+ {[%clk 0:00:55]}  Kd7 {[%clk 0:00:53]} 37. Nxd4 {[%clk 0:00:54]}  Nf1+ {[%clk 0:00:39]} 38. Ke1 {[%clk 0:00:43]}  Bxa2 {[%clk 0:00:36]} 39. Nc3 {[%clk 0:00:42]}  Bc4 {[%clk 0:00:36]} 40. Nxa4 {[%clk 0:00:39]}  Nxg3 {[%clk 0:00:35]} 41. Nb6+ {[%clk 0:00:39]}  Ke7 {[%clk 0:00:32]} 42. Nxc4 {[%clk 0:00:39]}  Ne4 {[%clk 0:00:31]} 43. c6 {[%clk 0:00:38]}  Kd8 {[%clk 0:00:30]} 44. Nb5 {[%clk 0:00:38]}  Nc5 {[%clk 0:00:24]} 45. c7+ {[%clk 0:00:38]} 1-0


[Site "https://www.chess.com"]

[Event "Titled Tuesday Blitz November 14 Late 2023"]
[White "Mikaelyan, Arman"]
[Black "Sydoryka, Vladyslav"]
[WhiteFideId "13304852"]
[BlackFideId "14145928"]
[WhiteElo "2834"]
[BlackElo "2703"]
[Result "1/2-1/2"]
[Round "10"]
[TimeControl "180+1"]
[Date "2023.11.14"]
[WhiteClock "0:00:06"]
[BlackClock "0:00:06"]
[Board "12"]

1. Nf3 {[%clk 0:02:59]}  d5 {[%clk 0:03:00]} 2. d4 {[%clk 0:02:59]}  Nf6 {[%clk 0:03:00]} 3. c4 {[%clk 0:02:59]}  e6 {[%clk 0:03:00]} 4. Nc3 {[%clk 0:02:59]}  Bb4 {[%clk 0:03:01]} 5. Bg5 {[%clk 0:02:58]}  dxc4 {[%clk 0:03:01]} 6. e4 {[%clk 0:02:57]}  c5 {[%clk 0:03:02]} 7. Bxc4 {[%clk 0:02:55]}  cxd4 {[%clk 0:02:56]} 8. Nxd4 {[%clk 0:02:55]}  Bxc3+ {[%clk 0:02:54]} 9. bxc3 {[%clk 0:02:56]}  Qa5 {[%clk 0:02:55]} 10. Bd2 {[%clk 0:02:57]}  Nxe4 {[%clk 0:02:53]} 11. Qg4 {[%clk 0:02:56]}  Nxd2 {[%clk 0:02:37]} 12. Qxg7 {[%clk 0:02:54]}  Rf8 {[%clk 0:02:36]} 13. Kxd2 {[%clk 0:02:52]}  Nc6 {[%clk 0:02:25]} 14. Bb5 {[%clk 0:02:21]}  Bd7 {[%clk 0:02:24]} 15. Bxc6 {[%clk 0:02:19]}  bxc6 {[%clk 0:02:22]} 16. Rhb1 {[%clk 0:02:14]}  Ke7 {[%clk 0:02:05]} 17. Rb7 {[%clk 0:02:10]}  Qd5 {[%clk 0:01:49]} 18. c4 {[%clk 0:01:40]}  Qc5 {[%clk 0:01:26]} 19. Qe5 {[%clk 0:00:42]}  Qxe5 {[%clk 0:01:21]} 20. Nxc6+ {[%clk 0:00:42]}  Kf6 {[%clk 0:01:22]} 21. Nxe5 {[%clk 0:00:42]}  Bc8 {[%clk 0:01:10]} 22. Rb5 {[%clk 0:00:42]}  a6 {[%clk 0:01:08]} 23. Ra5 {[%clk 0:00:42]}  Rd8+ {[%clk 0:00:56]} 24. Ke3 {[%clk 0:00:42]}  Bb7 {[%clk 0:00:57]} 25. f3 {[%clk 0:00:39]}  Rac8 {[%clk 0:00:56]} 26. Rb1 {[%clk 0:00:38]}  Rc7 {[%clk 0:00:55]} 27. g4 {[%clk 0:00:33]}  h6 {[%clk 0:00:55]} 28. h4 {[%clk 0:00:33]}  Kg7 {[%clk 0:00:48]} 29. g5 {[%clk 0:00:31]}  hxg5 {[%clk 0:00:49]} 30. hxg5 {[%clk 0:00:32]}  Rh8 {[%clk 0:00:49]} 31. c5 {[%clk 0:00:19]}  Bd5 {[%clk 0:00:47]} 32. c6 {[%clk 0:00:18]}  Rh2 {[%clk 0:00:38]} 33. Rc5 {[%clk 0:00:13]}  Rxa2 {[%clk 0:00:36]} 34. Rb8 {[%clk 0:00:12]}  Ra3+ {[%clk 0:00:34]} 35. Kf4 {[%clk 0:00:12]}  Ra4+ {[%clk 0:00:34]} 36. Kg3 {[%clk 0:00:12]}  Ra3 {[%clk 0:00:17]} 37. Rc1 {[%clk 0:00:11]}  Rb3 {[%clk 0:00:15]} 38. Rxb3 {[%clk 0:00:08]}  Bxb3 {[%clk 0:00:16]} 39. Kf4 {[%clk 0:00:07]}  a5 {[%clk 0:00:14]} 40. Rc5 {[%clk 0:00:06]}  a4 {[%clk 0:00:12]} 41. Ra5 {[%clk 0:00:07]}  f6 {[%clk 0:00:12]} 42. gxf6+ {[%clk 0:00:05]}  Kxf6 {[%clk 0:00:13]} 43. Nd7+ {[%clk 0:00:06]}  Ke7 {[%clk 0:00:11]} 44. Nb8 {[%clk 0:00:04]}  Kd6 {[%clk 0:00:10]} 45. Ke3 {[%clk 0:00:01]}  Rc8 {[%clk 0:00:10]} 46. Na6 {[%clk 0:00:01]}  Rxc6 {[%clk 0:00:07]} 47. Nb4 {[%clk 0:00:01]}  Rc4 {[%clk 0:00:06]} 48. Nd3 {[%clk 0:00:01]}  Rc8 {[%clk 0:00:05]} 49. Ra6+ {[%clk 0:00:02]}  Kd5 {[%clk 0:00:04]} 50. Nf4+ {[%clk 0:00:01]}  Ke5 {[%clk 0:00:04]} 51. Nd3+ {[%clk 0:00:02]}  Kd5 {[%clk 0:00:04]} 52. Nf4+ {[%clk 0:00:02]}  Kc5 {[%clk 0:00:04]} 53. Nxe6+ {[%clk 0:00:02]}  Kb5 {[%clk 0:00:05]} 54. Rd6 {[%clk 0:00:02]}  Re8 {[%clk 0:00:05]} 55. Kd4 {[%clk 0:00:02]}  Bxe6 {[%clk 0:00:04]} 56. Kc3 {[%clk 0:00:02]}  Bb3 {[%clk 0:00:04]} 57. Rf6 {[%clk 0:00:01]}  Re3+ {[%clk 0:00:04]} 58. Kb2 {[%clk 0:00:02]}  Re2+ {[%clk 0:00:05]} 59. Kc3 {[%clk 0:00:02]}  Rc2+ {[%clk 0:00:04]} 60. Kd3 {[%clk 0:00:03]}  a3 {[%clk 0:00:05]} 61. Rf8 {[%clk 0:00:03]}  Rc6 {[%clk 0:00:03]} 62. Rb8+ {[%clk 0:00:02]}  Rb6 {[%clk 0:00:02]} 63. Rxb6+ {[%clk 0:00:03]}  Kxb6 {[%clk 0:00:03]} 64. Kc3 {[%clk 0:00:03]}  Be6 {[%clk 0:00:03]} 65. Kc2 {[%clk 0:00:03]}  Ba2 {[%clk 0:00:03]} 66. Kc3 {[%clk 0:00:03]}  Bd5 {[%clk 0:00:02]} 67. Kc2 {[%clk 0:00:03]}  Ba2 {[%clk 0:00:01]} 68. Kc3 {[%clk 0:00:04]}  Bf7 {[%clk 0:00:02]} 69. Kc2 {[%clk 0:00:04]}  Bg6+ {[%clk 0:00:02]} 70. Kb3 {[%clk 0:00:04]}  Kc5 {[%clk 0:00:02]} 71. Kxa3 {[%clk 0:00:05]}  Kd4 {[%clk 0:00:03]} 72. f4 {[%clk 0:00:05]}  Bf5 {[%clk 0:00:04]} 73. Kb4 {[%clk 0:00:05]}  Ke4 {[%clk 0:00:05]} 74. Kb5 {[%clk 0:00:06]}  Kxf4 {[%clk 0:00:06]} 1/2-1/2


[Site "https://www.chess.com"]